bitfinex-derivatives/quotes_BTCF0:USTF0_20250108
["timestamp","ask_amount","ask_price","bid_price","bid_amount"]
[1736334835256,0.0356,95767.0,95751.0,0.3608]
[1736334835759,0.29412893,95768.0,95752.0,0.034]
[1736334836158,0.29412893,95768.0,95754.0,0.18633991]
[1736334836356,0.29412893,95768.0,95755.0,0.0355]
[1736334837262,0.29412893,95768.0,95756.0,0.0372]
[1736334840156,0.29512893,95768.0,95756.0,0.0372]
[1736334842660,0.29512893,95768.0,95755.0,0.0355]
[1736334843869,0.29412893,95768.0,95755.0,0.0355]
[1736334846870,0.09617423,95767.0,95755.0,0.0355]
[1736334847473,0.09617423,95767.0,95751.0,0.3608]
[1736334847672,0.10438614,95761.0,95751.0,0.3608]
[1736334852768,0.10438614,95761.0,95757.0,0.3608]
[1736334853974,0.10538614,95761.0,95757.0,0.3608]
[1736334855070,0.10438614,95767.0,95757.0,0.3608]
[1736334855269,0.10438614,95767.0,95766.0,0.3608]
[1736334855469,0.13978614,95776.0,95766.0,0.29066497]
[1736334855670,0.13978614,95776.0,95766.0,0.24066497]
[1736334856067,0.15323158,95776.0,95766.0,0.24066497]
[1736334856270,0.15323158,95776.0,95766.0,0.205108]
[1736334856475,0.15323158,95776.0,95766.0,0.1664478]
[1736334856876,0.3608,95773.0,95758.0,0.3608]
[1736334857181,0.10538614,95767.0,95758.0,0.3608]
[1736334858081,0.10438614,95767.0,95758.0,0.3608]
[1736334860175,0.10538614,95767.0,95758.0,0.3608]
[1736334862984,0.001,95767.0,95758.0,0.3608]
[1736334863169,0.001,95767.0,95766.0,0.3608]
[1736334863973,0.09617607,95771.0,95766.0,0.3608]
[1736334864482,0.01344544,95776.0,95767.0,0.0728]
[1736334864785,0.09617607,95779.0,95767.0,0.0728]
[1736334864976,0.3608,95768.0,95757.0,0.32180095]
[1736334865170,0.3608,95758.0,95745.0,0.3608]
[1736334866483,0.37409941,95758.0,95745.0,0.3608]
[1736334866678,0.09617607,95757.0,95745.0,0.3608]
[1736334867273,0.09617607,95757.0,95746.0,0.0369]
[1736334868591,0.09617607,95757.0,95753.0,0.3608]
[1736334869978,0.01329941,95758.0,95753.0,0.3608]
[1736334870179,0.09617607,95767.0,95753.0,0.3608]
[1736334870480,0.09617607,95767.0,95754.0,0.3608]
[1736334871184,0.1093338,95767.0,95754.0,0.3608]
[1736334872194,0.10438614,95764.0,95754.0,0.3608]
[1736334872989,0.0361,95766.0,95754.0,0.3608]
[1736334873492,0.1093338,95767.0,95754.0,0.3608]
[1736334875990,0.10438614,95764.0,95754.0,0.3608]
[1736334876385,0.1093338,95767.0,95754.0,0.3608]
[1736334876790,0.10438614,95764.0,95754.0,0.3608]
[1736334879895,0.1093338,95767.0,95754.0,0.3608]
[1736334880096,0.10438614,95764.0,95754.0,0.3608]
[1736334886098,0.10438614,95764.0,95763.0,0.3608]
[1736334886299,0.10438614,95773.0,95763.0,0.3608]
[1736334886500,0.10438614,95773.0,95763.0,0.3108]
[1736334888200,0.002,95764.0,95763.0,0.3108]
[1736334888900,0.10438614,95773.0,95763.0,0.3108]
[1736334889103,0.002,95773.0,95763.0,0.3108]
[1736334889291,0.002,95773.0,95764.0,0.1077]
[1736334889488,0.002,95773.0,95771.0,0.3608]
[1736334890997,0.01620805,95779.0,95771.0,0.3608]
[1736334891193,0.10438614,95780.0,95771.0,0.3608]
[1736334891394,0.10438614,95780.0,95779.0,0.3608]
[1736334891694,0.10438614,95790.0,95779.0,0.3608]
[1736334892405,0.20877228,95790.0,95779.0,0.3608]
[1736334892593,0.10438614,95790.0,95779.0,0.3608]
[1736334892794,0.20877228,95790.0,95779.0,0.3608]
[1736334894197,0.21277228,95790.0,95779.0,0.3608]
[1736334901004,0.10838614,95790.0,95779.0,0.3608]
[1736334901409,0.10838614,95790.0,95780.0,0.0728]
[1736334901801,0.10838614,95790.0,95781.0,0.038]
[1736334902611,0.10438614,95790.0,95781.0,0.038]
[1736334902912,0.10938614,95790.0,95781.0,0.038]
[1736334904610,0.005,95790.0,95781.0,0.038]
[1736334906514,0.005,95790.0,95782.0,0.0349]
[1736334907310,0.005,95790.0,95781.0,0.038]
[1736334908125,0.005,95790.0,95789.0,0.3608]
[1736334908510,0.01686863,95795.0,95789.0,0.3608]
[1736334908714,0.005,95790.0,95789.0,0.3608]
[1736334910429,0.006,95790.0,95789.0,0.3618]
[1736334913226,0.10438614,95810.0,95789.0,0.3618]
[1736334913523,0.10438614,95810.0,95809.0,0.3608]
[1736334913824,0.1124,95819.0,95809.0,0.3108]
[1736334914527,0.006,95810.0,95809.0,0.3108]
[1736334915323,0.14156917,95819.0,95809.0,0.3118]
[1736334916922,0.003,95810.0,95809.0,0.22578002]
[1736334917121,0.003,95810.0,95809.0,0.17578002]
[1736334917723,0.3608,95818.0,95809.0,0.17578002]
[1736334918523,0.3608,95818.0,95809.0,0.17478002]
[1736334918724,0.003,95810.0,95809.0,0.17578002]
[1736334920133,0.3608,95818.0,95809.0,0.17478002]
[1736334920328,0.3688,95818.0,95809.0,0.17578002]
[1736334921036,0.008,95810.0,95809.0,0.17578002]
[1736334921822,0.3688,95818.0,95809.0,0.17578002]
[1736334923430,0.3688,95818.0,95809.0,0.17478002]
[1736334923431,0.3608,95818.0,95809.0,0.17478002]
[1736334923631,0.008,95810.0,95809.0,0.17578002]
[1736334924339,0.3688,95818.0,95809.0,0.17578002]
[1736334925238,0.008,95810.0,95809.0,0.15438072]
[1736334925628,0.3688,95810.0,95782.0,0.038]
[1736334925835,0.3688,95810.0,95742.0,0.18633991]
[1736334925836,0.20877228,95792.0,95742.0,0.18633991]
[1736334926037,0.10438614,95770.0,95766.0,0.3608]
[1736334926336,0.10438614,95776.0,95766.0,0.3608]
[1736334926725,0.10438614,95776.0,95750.0,0.22910412]
[1736334926726,0.46518614,95776.0,95758.0,0.3608]
[1736334926930,0.3608,95767.0,95754.0,0.3608]
[1736334927138,0.10438614,95760.0,95754.0,0.3608]
[1736334928739,0.10438614,95760.0,95754.0,0.35169554]
[1736334929141,0.3608,95755.0,95734.0,0.3608]
[1736334929442,0.10438614,95744.0,95734.0,0.3608]
[1736334930531,0.3608,95755.0,95734.0,0.3608]
[1736334930532,0.10438614,95750.0,95734.0,0.3608]
[1736334930927,0.10438614,95750.0,95735.0,0.0728]
[1736334932645,0.3608,95746.0,95735.0,0.0728]
[1736334932842,0.3608,95746.0,95728.0,0.0378]
[1736334933146,0.10438614,95738.0,95727.0,0.3608]
[1736334934245,0.10438614,95738.0,95737.0,0.3608]
[1736334934441,0.10438614,95747.0,95737.0,0.3608]
[1736334936047,0.12538034,95747.0,95737.0,0.3608]
[1736334936846,0.12738034,95747.0,95737.0,0.3608]
[1736334938548,0.12538034,95747.0,95737.0,0.3608]
[1736334938847,0.12738034,95747.0,95738.0,0.0363]
[1736334939247,0.12738034,95747.0,95739.0,0.0363]
[1736334940349,0.12838034,95747.0,95739.0,0.0363]
[1736334942254,0.10438614,95750.0,95746.0,0.3608]
[1736334942550,0.10438614,95756.0,95746.0,0.3608]
[1736334943250,0.003,95747.0,95746.0,0.3608]
[1736334943949,0.10438614,95756.0,95746.0,0.3608]
[1736334944252,0.10838614,95756.0,95746.0,0.3608]
[1736334945053,0.004,95747.0,95746.0,0.3608]
[1736334946553,0.10738614,95756.0,95746.0,0.3608]
[1736334947355,0.10438614,95756.0,95755.0,0.3608]
[1736334947651,0.04957883,95763.0,95755.0,0.3608]
[1736334948044,0.04957883,95763.0,95756.0,0.0367]
[1736334948450,0.04957883,95763.0,95755.0,0.3608]
[1736334950051,0.05557883,95763.0,95755.0,0.3608]
[1736334951552,0.05457883,95763.0,95755.0,0.3608]
[1736334951856,0.02581205,95763.0,95757.0,0.3608]
[1736334952355,0.02581205,95763.0,95758.0,0.0418]
[1736334953551,0.02081205,95763.0,95758.0,0.0418]
[1736334953750,0.005,95763.0,95758.0,0.0418]
[1736334954358,0.10438614,95770.0,95758.0,0.0418]
[1736334954543,0.10438614,95770.0,95769.0,0.3608]
[1736334954749,0.10438614,95779.0,95769.0,0.3608]
[1736334956660,0.002,95770.0,95769.0,0.3608]
[1736334957362,0.002,95779.0,95769.0,0.3618]
[1736334958150,0.10438614,95780.0,95769.0,0.3608]
[1736334961056,0.002,95779.0,95769.0,0.3618]
[1736334961762,0.10438614,95780.0,95769.0,0.3618]
[1736334962060,0.002,95780.0,95769.0,0.3618]
[1736334962264,0.002,95780.0,95770.0,0.0403]
[1736334962649,0.002,95779.0,95770.0,0.0403]
[1736334964463,0.10638614,95780.0,95770.0,0.0413]
[1736334965058,0.10438614,95780.0,95770.0,0.0403]
[1736334965258,0.002,95779.0,95770.0,0.0413]
[1736334965849,0.10438614,95780.0,95770.0,0.0403]
[1736334966056,0.10638614,95780.0,95770.0,0.0413]
[1736334966460,0.002,95780.0,95779.0,0.3608]
[1736334968667,0.02539375,95787.0,95779.0,0.3608]
[1736334968866,0.10438614,95790.0,95782.0,0.3608]
[1736334969467,0.13716624,95790.0,95782.0,0.3608]
[1736334970263,0.0327801,95790.0,95782.0,0.3608]
[1736334970460,0.0403,95794.0,95782.0,0.3608]
[1736334970668,0.0403,95794.0,95793.0,0.3608]
[1736334971169,0.07328704,95794.0,95793.0,0.3608]
[1736334972457,0.07328704,95794.0,95793.0,0.3618]
[1736334972458,0.07528704,95794.0,95793.0,0.3618]
[1736334973062,0.03498704,95794.0,95793.0,0.3618]
[1736334976768,0.39578704,95794.0,95773.0,0.22609678]
[1736334976955,0.10438614,95780.0,95773.0,0.18529678]
[1736334977359,0.3608,95775.0,95771.0,0.0383]
[1736334978163,0.3608,95775.0,95773.0,0.001]
[1736334978965,0.3638,95775.0,95771.0,0.0393]
[1736334979469,0.3638,95775.0,95771.0,0.001]
[1736334979670,0.3608,95775.0,95765.0,0.3608]
[1736334979970,0.3638,95775.0,95773.0,0.001]
[1736334981757,0.3608,95775.0,95765.0,0.3608]
[1736334981961,0.3638,95775.0,95771.0,0.001]
[1736334982162,0.39608543,95775.0,95771.0,0.001]
[1736334982559,0.03228543,95775.0,95762.0,0.3608]
[1736334982764,0.003,95775.0,95773.0,0.001]
[1736334983359,0.003,95775.0,95762.0,0.3608]
[1736334983360,0.3608,95776.0,95762.0,0.3608]
[1736334983568,0.10438614,95772.0,95771.0,0.001]
[1736334983769,0.003,95775.0,95771.0,0.001]
[1736334985673,0.003,95775.0,95773.0,0.001]
[1736334986176,0.003,95775.0,95762.0,0.3608]
[1736334986376,0.10438614,95772.0,95762.0,0.3608]
[1736334987071,0.10438614,95772.0,95771.0,0.001]
[1736334987271,0.0435,95775.0,95771.0,0.001]
[1736334987471,0.0435,95775.0,95762.0,0.3608]
[1736334987872,0.10438614,95772.0,95762.0,0.3608]
[1736334988270,0.10438614,95772.0,95762.0,0.32501144]
[1736334988966,0.10838614,95772.0,95762.0,0.32501144]
[1736334997784,0.10838614,95772.0,95763.0,0.0408]
[1736334998284,0.004,95772.0,95764.0,0.0416]
[1736334998981,0.10438614,95774.0,95764.0,0.0416]
[1736334999183,0.005,95772.0,95764.0,0.0416]
[1736335001376,0.005,95772.0,95764.0,0.0426]
[1736335008981,0.005,95772.0,95764.0,0.001]
[1736335027100,0.005,95772.0,95770.0,0.3608]
[1736335027300,0.005,95772.0,95771.0,0.0426]
[1736335027690,0.004,95772.0,95771.0,0.0906]
[1736335028107,0.06875705,95790.0,95771.0,0.3906]
[1736335028291,0.3608,95796.0,95784.0,0.3608]
[1736335028495,0.06875705,95794.0,95785.0,0.0431]
[1736335028897,0.38533183,95796.0,95785.0,0.0431]
[1736335030897,0.004,95794.0,95785.0,0.0441]
[1736335031593,0.38833183,95796.0,95785.0,0.0441]
[1736335033605,0.004,95794.0,95785.0,0.0441]
[1736335034306,0.38933183,95796.0,95785.0,0.0441]
[1736335035209,0.004,95794.0,95785.0,0.0441]
[1736335037207,0.38933183,95796.0,95785.0,0.0441]
[1736335037808,0.38933183,95796.0,95785.0,0.0431]
[1736335037809,0.38533183,95796.0,95785.0,0.0431]
[1736335038112,0.004,95794.0,95785.0,0.0441]
[1736335038612,0.02453183,95796.0,95785.0,0.0431]
[1736335038812,0.02453183,95796.0,95787.0,0.3608]
[1736335038813,0.004,95796.0,95787.0,0.3608]
[1736335040312,0.004,95794.0,95787.0,0.3608]
[1736335041204,0.004,95796.0,95787.0,0.3618]
[1736335043612,0.004,95794.0,95787.0,0.3618]
[1736335044315,0.004,95794.0,95787.0,0.001]
[1736335044517,0.004,95794.0,95787.0,0.3618]
[1736335045208,0.12417595,95800.0,95787.0,0.3618]
[1736335045415,0.004,95796.0,95787.0,0.3618]
[1736335047016,0.004,95794.0,95787.0,0.3618]
[1736335047216,0.004,95794.0,95788.0,0.0463]
[1736335047809,0.12417595,95800.0,95788.0,0.0463]
[1736335047810,0.004,95796.0,95788.0,0.0463]
[1736335048607,0.004,95794.0,95788.0,0.0923]
[1736335050313,0.004,95796.0,95788.0,0.0923]
[1736335051210,0.004,95794.0,95788.0,0.0923]
[1736335052208,0.004,95794.0,95788.0,0.001]
[1736335052603,0.3608,95791.0,95768.0,0.0938]
[1736335052812,0.06869978,95790.0,95770.0,0.06869978]
[1736335053313,0.3608,95791.0,95770.0,0.06869978]
[1736335053520,0.3608,95791.0,95780.0,0.06869978]
[1736335053915,0.0488,95793.0,95788.0,0.001]
[1736335054815,0.005,95796.0,95788.0,0.001]
[1736335055014,0.005,95791.0,95786.0,0.3608]
[1736335055807,0.005,95793.0,95788.0,0.001]
[1736335057505,0.005,95791.0,95790.0,0.3608]
[1736335058321,0.12417595,95800.0,95790.0,0.3608]
[1736335058505,0.12417595,95800.0,95799.0,0.3608]
[1736335061220,0.12417595,95800.0,95799.0,0.3618]
[1736335061221,0.12917595,95800.0,95799.0,0.3618]
[1736335061616,0.12917595,95800.0,95799.0,0.001]
[1736335061816,0.12917595,95800.0,95799.0,0.3618]
[1736335068129,0.105,95800.0,95799.0,0.3618]
[1736335070025,0.026,95800.0,95799.0,0.3618]
[1736335070224,0.026,95800.0,95799.0,0.3608]
[1736335085839,0.026,95800.0,95799.0,0.5814]
[1736335092849,0.0487,95818.0,95799.0,0.5814]
[1736335093052,0.0487,95818.0,95817.0,0.3608]
[1736335094045,0.0537,95818.0,95817.0,0.3608]
[1736335094443,0.0537,95818.0,95817.0,0.7216]
[1736335094750,0.005,95818.0,95817.0,0.7226]
[1736335097844,0.005,95818.0,95817.0,0.9432]
[1736335099049,0.0528,95838.0,95817.0,0.9432]
[1736335099249,0.1008,95838.0,95837.0,0.7216]
[1736335108353,0.1008,95838.0,95828.0,0.1045764]
[1736335108544,0.1008,95838.0,95837.0,0.3608]
[1736335111963,0.1008,95838.0,95828.0,0.1045764]
[1736335112156,0.1008,95838.0,95837.0,0.3608]
[1736335114656,0.1008,95838.0,95829.0,0.3608]
[1736335114852,0.3608,95830.0,95811.0,0.2206]
[1736335115052,0.3608,95822.0,95810.0,0.3608]
[1736335115251,0.1515,95821.0,95806.0,0.3608]
[1736335115861,0.1515,95821.0,95815.0,0.3608]
[1736335117255,0.3608,95820.0,95806.0,0.3608]
[1736335117455,0.1515,95821.0,95815.0,0.3608]
[1736335117653,0.1515,95821.0,95816.0,0.3608]
[1736335118155,0.17075655,95821.0,95816.0,0.3608]
[1736335119659,0.12055655,95821.0,95816.0,0.3608]
[1736335120264,0.0524,95820.0,95816.0,0.3608]
[1736335122559,0.12055655,95821.0,95816.0,0.3608]
[1736335127468,0.01925655,95821.0,95816.0,0.3608]
[1736335127670,0.1022,95838.0,95817.0,0.3608]
[1736335128264,0.1045764,95830.0,95817.0,0.3608]
[1736335130172,0.1045764,95830.0,95819.0,0.3608]
[1736335132763,0.3608,95834.0,95819.0,0.3608]
[1736335135275,0.0686586,95830.0,95819.0,0.3608]
[1736335135976,0.0686586,95829.0,95819.0,0.3608]
[1736335136671,0.0686586,95830.0,95819.0,0.3608]
[1736335137273,0.10465206,95829.0,95819.0,0.3608]
[1736335137575,0.10465206,95829.0,95808.0,0.3608]
[1736335137778,0.10465206,95820.0,95808.0,0.3608]
[1736335137981,0.0496,95819.0,95808.0,0.3608]
[1736335148489,0.0496,95819.0,95818.0,0.3608]
[1736335149791,0.01770643,95820.0,95818.0,0.3608]
[1736335149992,0.0547,95829.0,95818.0,0.3608]
[1736335157399,0.06866913,95828.0,95818.0,0.3608]
[1736335160406,0.06866913,95828.0,95819.0,0.0523]
[1736335161700,0.06866913,95828.0,95826.0,0.3608]
[1736335162005,0.0547,95829.0,95826.0,0.3608]
[1736335162501,0.01628204,95830.0,95826.0,0.3608]
[1736335162696,0.0509,95837.0,95826.0,0.3608]
[1736335163210,0.4117,95837.0,95826.0,0.3608]
[1736335164497,0.42797682,95837.0,95826.0,0.3608]
[1736335164902,0.06866913,95836.0,95826.0,0.3608]
[1736335166899,0.3608,95827.0,95804.0,0.3608]
[1736335167101,0.13733826,95814.0,95796.0,0.3608]
[1736335167407,0.3608,95800.0,95789.0,0.0522]
[1736335167607,0.3608,95800.0,95786.0,0.0534]
[1736335167801,0.10469847,95798.0,95786.0,0.0534]
[1736335168000,0.10469847,95798.0,95785.0,0.3608]
[1736335183524,0.10469847,95798.0,95778.0,0.10536609]
[1736335183823,0.10469847,95798.0,95784.0,0.58981148]
[1736335185027,0.10469847,95798.0,95784.0,0.3608]
[1736335189522,0.06872088,95794.0,95784.0,0.3608]
[1736335198435,0.0524,95793.0,95784.0,0.3608]
[1736335200330,0.02372088,95797.0,95784.0,0.3608]
[1736335200531,0.06872088,95794.0,95784.0,0.3608]
[1736335206639,0.13744176,95794.0,95784.0,0.3608]
[1736335206940,0.3608,95790.0,95773.0,0.3608]
[1736335207135,0.13744176,95783.0,95773.0,0.32344774]
[1736335207530,0.3608,95777.0,95772.0,0.0534]
[1736335210447,0.37522984,95777.0,95772.0,0.0534]
[1736335214034,0.01442984,95777.0,95772.0,0.0534]
[1736335214238,0.13744176,95783.0,95772.0,0.0534]
[1736335214741,0.3608,95790.0,95772.0,0.0534]
[1736335214943,0.06872088,95782.0,95772.0,0.0534]
[1736335217945,0.44369918,95790.0,95772.0,0.4142]
[1736335218130,0.06872088,95782.0,95772.0,0.4142]
[1736335218536,0.3749783,95790.0,95772.0,0.4142]
[1736335218537,0.44369918,95790.0,95772.0,0.4142]
[1736335218739,0.06872088,95782.0,95772.0,0.4142]
[1736335218946,0.0141783,95790.0,95781.0,0.3608]
[1736335219136,0.06872088,95791.0,95782.0,0.0526]
[1736335219337,0.06872088,95800.0,95782.0,0.1028]
[1736335219538,0.37502713,95798.0,95782.0,0.1028]
[1736335219732,0.06872088,95792.0,95782.0,0.1028]
[1736335219939,0.06872088,95792.0,95790.0,0.3608]
[1736335220245,0.37502713,95798.0,95791.0,0.0506]
[1736335220647,0.01422713,95798.0,95791.0,0.0506]
[1736335220846,0.13744176,95800.0,95791.0,0.0506]
[1736335221745,0.13744176,95800.0,95791.0,0.4114]
[1736335221938,0.3608,95803.0,95791.0,0.4114]
[1736335222249,0.06872088,95801.0,95800.0,0.3608]
[1736335222446,0.06872088,95810.0,95800.0,0.3608]
[1736335222748,0.06872088,95810.0,95791.0,0.4114]
[1736335222951,0.06872088,95801.0,95791.0,0.4114]
[1736335225352,0.06872088,95810.0,95791.0,0.4114]
[1736335226349,0.06872088,95801.0,95791.0,0.4114]
[1736335227145,0.13744176,95801.0,95791.0,0.4114]
[1736335227651,0.13744176,95801.0,95791.0,0.3608]
[1736335227851,0.103,95800.0,95791.0,0.3608]
[1736335228552,0.203,95800.0,95791.0,0.3608]
[1736335235157,0.203,95800.0,95783.0,0.3608]
[1736335235356,0.21745016,95800.0,95783.0,0.3608]
[1736335235659,0.1047098,95793.0,95783.0,0.3608]
[1736335237358,0.32215996,95800.0,95783.0,0.3608]
[1736335238560,0.1047098,95793.0,95783.0,0.3608]
[1736335238953,0.1047098,95793.0,95782.0,0.0502]
[1736335240559,0.1047098,95793.0,95780.0,0.3608]
[1736335243655,0.3608,95794.0,95780.0,0.3608]
[1736335248067,0.1047098,95790.0,95780.0,0.3608]
[1736335249668,0.06872713,95790.0,95780.0,0.3608]
[1736335252066,0.08302505,95790.0,95780.0,0.3608]
[1736335252263,0.08302505,95790.0,95772.0,0.1503]
[1736335252467,0.06872713,95782.0,95772.0,0.1503]
[1736335253765,0.06872713,95782.0,95780.0,0.3608]
[1736335253966,0.06872713,95790.0,95772.0,0.1503]
[1736335254167,0.06872713,95782.0,95780.0,0.3608]
[1736335254461,0.06872713,95790.0,95780.0,0.3608]
[1736335255163,0.06872713,95790.0,95772.0,0.1503]
[1736335255362,0.06872713,95782.0,95772.0,0.1503]
[1736335256160,0.06872713,95782.0,95779.0,0.3608]
[1736335256364,0.06872713,95789.0,95779.0,0.3608]
[1736335258763,0.06872713,95789.0,95772.0,0.1503]
[1736335258962,0.06872713,95782.0,95772.0,0.1503]
[1736335260359,0.06872713,95782.0,95779.0,0.3608]
[1736335260560,0.06872713,95789.0,95779.0,0.3608]
[1736335260856,0.06872713,95789.0,95772.0,0.1503]
[1736335261060,0.06872713,95782.0,95779.0,0.3608]
[1736335261261,0.06872713,95789.0,95779.0,0.3608]
[1736335269663,0.06872713,95789.0,95787.0,0.3608]
[1736335269877,0.0133111,95793.0,95788.0,0.1532]
[1736335270077,0.23745426,95800.0,95788.0,0.1532]
[1736335272465,0.24993657,95800.0,95788.0,0.1532]
[1736335275981,0.06872713,95798.0,95788.0,0.1532]
[1736335277280,0.18120944,95800.0,95788.0,0.1532]
[1736335277981,0.24993657,95800.0,95788.0,0.1532]
[1736335278877,0.11248231,95800.0,95788.0,0.1532]
[1736335279082,0.11248231,95800.0,95795.0,0.3608]
[1736335280281,0.03298231,95800.0,95795.0,0.3608]
[1736335282569,0.0205,95800.0,95795.0,0.3608]
[1736335283576,0.0205,95800.0,95799.0,0.3608]
[1736335283775,0.16872713,95820.0,95799.0,0.3608]
[1736335283974,0.16872713,95820.0,95812.0,0.3608]
[1736335284176,0.18162379,95820.0,95812.0,0.3608]
[1736335284683,0.3608,95814.0,95799.0,0.3608]
[1736335284881,0.13745426,95809.0,95799.0,0.3608]
[1736335285275,0.06872713,95809.0,95799.0,0.35211261]
[1736335287285,0.10469493,95809.0,95799.0,0.35211261]
[1736335289288,0.11747931,95809.0,95799.0,0.35211261]
[1736335296893,0.11747931,95809.0,95780.0,0.10469493]
[1736335297090,0.3608,95808.0,95793.0,0.3608]
[1736335298784,0.11747931,95809.0,95780.0,0.10469493]
[1736335298987,0.3608,95808.0,95793.0,0.3608]
[1736335300592,0.10469493,95803.0,95793.0,0.3608]
[1736335301696,0.3608,95808.0,95793.0,0.3608]
[1736335302385,0.01278438,95809.0,95803.0,0.3608]
[1736335302684,0.10469493,95810.0,95803.0,0.3608]
[1736335305596,0.11747777,95810.0,95803.0,0.3608]
[1736335309391,0.01278284,95810.0,95803.0,0.3608]
[1736335309591,0.12049701,95813.0,95795.0,0.3608]
[1736335310900,0.06869701,95805.0,95795.0,0.3608]
[1736335311094,0.13739402,95805.0,95795.0,0.3608]
[1736335312095,0.06869701,95805.0,95795.0,0.3608]
[1736335312296,0.06869701,95805.0,95792.0,0.3608]
[1736335312600,0.06869701,95802.0,95792.0,0.3608]
[1736335316493,0.06869701,95802.0,95796.0,0.3608]
[1736335317198,0.06869701,95802.0,95784.0,0.3608]
[1736335317399,0.06869701,95802.0,95794.0,0.3608]
[1736335318101,0.3608,95801.0,95784.0,0.3608]
[1736335319004,0.06869701,95802.0,95780.0,0.06869701]
[1736335319301,0.3608,95801.0,95786.0,0.3608]
[1736335319498,0.06869701,95800.0,95786.0,0.3608]
[1736335319705,0.1648144,95800.0,95786.0,0.3608]
[1736335320997,0.051,95799.0,95786.0,0.3608]
[1736335321895,0.051,95798.0,95786.0,0.3608]
[1736335322707,0.06869701,95796.0,95786.0,0.3608]
[1736335322907,0.3608,95790.0,95776.0,0.1521]
[1736335323101,0.13739402,95786.0,95768.0,0.00156605]
[1736335323413,0.13739402,95781.0,95768.0,0.00156605]
[1736335323708,0.49819402,95781.0,95768.0,0.00156605]
[1736335324009,0.0515,95780.0,95765.0,0.3608]
[1736335324801,0.06869701,95775.0,95765.0,0.3608]
[1736335325817,0.14761739,95780.0,95765.0,0.3608]
[1736335326304,0.06869701,95775.0,95765.0,0.3608]
[1736335326605,0.06869701,95775.0,95760.0,0.06869701]
[1736335326800,0.16002933,95780.0,95770.0,0.3608]
[1736335327898,0.22872634,95780.0,95770.0,0.3608]
[1736335328094,0.13260895,95780.0,95770.0,0.3608]
[1736335329009,0.22872634,95780.0,95770.0,0.3608]
[1736335329204,0.10852933,95780.0,95770.0,0.3608]
[1736335330206,0.01241194,95780.0,95770.0,0.3608]
[1736335330405,0.06869701,95781.0,95770.0,0.3608]
[1736335330800,0.06869701,95781.0,95780.0,0.3608]
[1736335330997,0.09611739,95784.0,95780.0,0.3608]
[1736335331911,0.06869701,95790.0,95780.0,0.3608]
[1736335332605,0.08119438,95790.0,95780.0,0.3608]
[1736335332803,0.08119438,95790.0,95770.0,0.3608]
[1736335333000,0.06869701,95780.0,95770.0,0.3608]
[1736335333196,0.13739402,95780.0,95770.0,0.3608]
[1736335336615,0.3608,95777.0,95760.0,0.3608]
[1736335336808,0.06869701,95771.0,95760.0,0.3608]
[1736335338009,0.06869701,95771.0,95760.0,0.3618]
[1736335339307,0.10476787,95770.0,95760.0,0.3618]
[1736335340499,0.10476787,95770.0,95760.0,0.3608]
[1736335341605,0.3608,95769.0,95760.0,0.3608]
[1736335342110,0.09614869,95768.0,95760.0,0.3608]
[1736335344014,0.3608,95769.0,95760.0,0.3608]
[1736335350620,0.09615379,95768.0,95760.0,0.3608]
[1736335357822,0.09615379,95768.0,95759.0,0.1022]
[1736335362927,0.42955149,95769.0,95759.0,0.1022]
[1736335366121,0.49830298,95769.0,95755.0,0.3608]
[1736335366319,0.3608,95760.0,95744.0,0.0533]
[1736335366522,0.06875149,95753.0,95744.0,0.0533]
[1736335366715,0.06875149,95754.0,95744.0,0.0533]
[1736335368121,0.06875149,95754.0,95744.0,0.0553]
[1736335369725,0.08056975,95754.0,95744.0,0.0553]
[1736335370319,0.3608,95752.0,95744.0,0.002]
[1736335371227,0.0961632,95751.0,95744.0,0.002]
[1736335373129,0.0961632,95751.0,95740.0,0.00156649]
[1736335373322,0.06875149,95750.0,95744.0,0.002]
[1736335373522,0.0961632,95751.0,95744.0,0.002]
[1736335374228,0.0961632,95751.0,95740.0,0.00356649]
[1736335374627,0.06875149,95750.0,95740.0,0.00356649]
[1736335376125,0.06875149,95750.0,95744.0,0.002]
[1736335376324,0.0961632,95751.0,95744.0,0.002]
[1736335376932,0.0961632,95751.0,95740.0,0.00356649]
[1736335377235,0.06875149,95750.0,95740.0,0.00356649]
[1736335377937,0.06875149,95750.0,95744.0,0.002]
[1736335378137,0.0515,95750.0,95744.0,0.002]
[1736335379558,0.0515,95750.0,95740.0,0.00356649]
[1736335379746,0.12025149,95750.0,95740.0,0.00356649]
[1736335380556,0.12025149,95750.0,95744.0,0.002]
[1736335380741,0.0515,95750.0,95744.0,0.002]
[1736335381151,0.0515,95750.0,95740.0,0.00156649]
[1736335381353,0.06875149,95750.0,95740.0,0.00356649]
[1736335381553,0.0961632,95751.0,95740.0,0.00356649]
[1736335381754,0.06875149,95750.0,95741.0,0.0527]
[1736335382857,0.3608,95752.0,95744.0,0.002]
[1736335383754,0.3608,95752.0,95741.0,0.0547]
[1736335384358,0.3608,95752.0,95741.0,0.0527]
[1736335384560,0.3608,95752.0,95744.0,0.002]
[1736335385357,0.09616524,95751.0,95744.0,0.002]
[1736335388154,0.09616524,95751.0,95741.0,0.0547]
[1736335388957,0.09616524,95751.0,95744.0,0.002]
[1736335390759,0.09616524,95751.0,95741.0,0.002]
[1736335391359,0.09616524,95751.0,95740.0,0.00156649]
[1736335391559,0.06875149,95750.0,95744.0,0.002]
[1736335391759,0.09616524,95751.0,95744.0,0.002]
[1736335392251,0.3608,95752.0,95744.0,0.002]
[1736335392661,0.3608,95752.0,95740.0,0.00156649]
[1736335392856,0.06875149,95750.0,95741.0,0.002]
[1736335394862,0.06875149,95750.0,95740.0,0.00156649]
[1736335395068,0.06875149,95750.0,95744.0,0.002]
[1736335395271,0.3608,95752.0,95744.0,0.002]
[1736335395760,0.3608,95752.0,95741.0,0.002]
[1736335397468,0.3608,95752.0,95744.0,0.002]